[Event "Italian Women Championship 2023"]
[Site "Brescia"]
[Date "2023.12.08"]
[Round "6.4"]
[White "Brunello, Marina"]
[Black "Zimina, Olga"]
[Result "1/2-1/2"]
[ECO "B01"]
[WhiteElo "2343"]
[BlackElo "2277"]
[Annotator "RC"]
[PlyCount "43"]
[EventDate "2023.12.03"]
[EventType "tourn"]
[EventCountry "ITA"]
[SourceTitle "playchess.com"]
[Source "ChessBase"]
[SourceQuality "1"]
[TimeControl "40/6000+30:20/3000+30:900+30"]

1. e4 {[%emt 0:01:47]} d5 {[%emt 0:00:06]} 2. exd5 {[%emt 0:01:20]} Qxd5 {[%emt 0:00:10]} 3. Nc3 {[%emt 0:00:06]} Qa5 {[%emt 0:00:03]} 4. d4 {[%emt 0:01:15]} Nf6 {[%emt 0:00:17]} 5. Nf3 {[%emt 0:04:42]} c6 {[%emt 0:00:29]} 6. Bc4 {[%emt 0:00:35]} Bf5 {[%emt 0:00:13]} 7. Bd2 {[%emt 0:00:32]} e6 {[%emt 0:00:06]} 8. Nd5 {[%emt 0:00:45]} Qd8 {[%emt 0:00:05]} 9. Nxf6+ {[%emt 0:00:04]} Qxf6 {[%emt 0:00:25]} 10. Qe2 {[%emt 0:00:19]} Nd7 {[%emt 0:00:09]} 11. Bc3 {[%emt 0:13:03]} Nb6 {[%emt 0:18:03]} 12. Bb3 {[%emt 0:05:53]} a5 {[%emt 0:06:23]} 13. a4 {[%emt 0:04:11]} Bb4 {[%emt 0:17:32]} 14. Bxb4 {[%emt 0:13:05]} axb4 {[%emt 0:00:41]} 15. Ne5 {[%emt 0:00:27]} O-O {[%emt 0:01:08]} 16. O-O {[%emt 0:00:53]} Rfd8 {[%emt 0:00:07]} 17. a5 {[%emt 0:28:09]} Nd7 {[%emt 0:03:06]} 18. a6 {[%emt 0:07:37]} Nxe5 {[%emt 0:01:46]} 19. dxe5 {[%emt 0:00:04]} Qe7 {[%emt 0:02:47]} 20. axb7 {[%emt 0:01:24]} Rxa1 {[%emt 0:00:30]} 21. Rxa1 {[%emt 0:00:04]} Qxb7 {[%emt 0:00:04]} 22. Qe3 {[%emt 0:00:32]} 1/2-1/2

[Event "Italian Women Championship 2023"]
[Site "Brescia"]
[Date "2023.12.09"]
[Round "7.1"]
[White "Zimina, Olga"]
[Black "Sedina, Elena"]
[Result "1-0"]
[ECO "A07"]
[WhiteElo "2277"]
[BlackElo "2169"]
[Annotator "ChessBase"]
[PlyCount "157"]
[EventDate "2023.12.03"]
[EventType "tourn"]
[EventCountry "ITA"]
[SourceTitle "playchess.com"]
[Source "ChessBase"]
[SourceQuality "1"]
[TimeControl "40/6000+30:20/3000+30:900+30"]

1. Nf3 {[%emt 0:00:07]} d5 {[%emt 0:00:07]} 2. g3 {[%emt 0:00:10]} Bg4 {[%emt 0:01:02]} 3. Bg2 {[%emt 0:00:13]} e6 {[%emt 0:00:10]} 4. h3 {[%emt 0:00:41]} Bh5 {[%emt 0:00:07]} 5. O-O {[%emt 0:01:20]} Nf6 {[%emt 0:01:28]} 6. c4 {[%emt 0:00:09]} c6 {[%emt 0:00:14]} 7. d4 {[%emt 0:00:12]} Be7 {[%emt 0:01:42]} 8. Nc3 {[%emt 0:00:13]} O-O {[%emt 0:02:00]} 9. Ne5 {[%emt 0:00:05]} Bg6 {[%emt 0:33:47]} 10. Nxg6 {[%emt 0:07:35]} hxg6 {[%emt 0:00:02]} 11. b3 {[%emt 0:00:45]} Nbd7 {[%emt 0:05:08]} 12. Bb2 {[%emt 0:00:18]} Re8 {[%emt 0:08:33]} 13. Qd3 {[%emt 0:01:51]} Qa5 {[%emt 0:10:00]} 14. a3 {[%emt 0:10:59]} Qa6 {[%emt 0:09:19]} 15. Na2 {[%emt 0:07:01]} Rad8 {[%emt 0:08:14]} 16. Qc2 {[%emt 0:03:00]} Rc8 {[%emt 0:07:54]} 17. Rfc1 {[%emt 0:03:57]} b5 {[%emt 0:01:50]} 18. Nb4 {[%emt 0:03:00]} Bxb4 {[%emt 0:11:33]} 19. axb4 {[%emt 0:01:16]} Qb7 {[%emt 0:00:01]} 20. c5 {[%emt 0:13:56]} e5 {[%emt 0:00:16]} 21. dxe5 {[%emt 0:00:08]} Nxe5 {[%emt 0:00:04]} 22. Ra2 {[%emt 0:00:09]} Qe7 {[%emt 0:04:39]} 23. Qc3 {[%emt 0:06:58]} Rc7 {[%emt 0:00:52]} 24. Qd4 {[%emt 0:00:37]} Ned7 {[%emt 0:01:35]} 25. Qf4 {[%emt 0:03:39]} Nf8 {[%emt 0:00:17]} 26. Rca1 {[%emt 0:00:47]} Rd7 {[%emt 0:01:13]} 27. Ra6 {[%emt 0:06:49]} Nh5 {[%emt 0:00:23]} 28. Qd4 {[%emt 0:00:59]} Rc7 {[%emt 0:01:09]} 29. Bf3 {[%emt 0:01:53]} Nf6 {[%emt 0:00:24]} 30. h4 {[%emt 0:07:48]} Qd7 {[%emt 0:00:19]} 31. Kg2 {[%emt 0:02:50]} Ne6 {[%emt 0:00:04]} 32. Qd2 {[%emt 0:00:06]} Nd8 {[%emt 0:01:12]} 33. Bd4 {[%emt 0:11:54]} Ne4 {[%emt 0:00:45]} 34. Qb2 {[%emt 0:00:41]} f6 {[%emt 0:00:21]} 35. Rd1 {[%emt 0:00:49]} Qe7 {[%emt 0:00:42]} 36. Qc2 {[%emt 0:01:30]} Qf7 {[%emt 0:00:16]} 37. Be3 {[%emt 0:00:10]} Rb7 {[%emt 0:00:41]} 38. Bf4 {[%emt 0:01:16]} Rbe7 {[%emt 0:00:29]} 39. Rda1 {[%emt 0:01:15]} Rd7 {[%emt 0:00:28]} 40. Bg4 {[%emt 0:05:36]} f5 {[%emt 0:00:02]} 41. Bf3 {[%emt 0:50:18]} Ne6 {[%emt 0:50:37]} 42. Bc1 {[%emt 0:00:00]} Rc8 {[%emt 0:00:00]} 43. Bb2 {[%emt 0:00:00]} g5 {[%emt 0:00:00]} 44. hxg5 {[%emt 0:00:00]} N4xg5 {[%emt 0:00:00]} 45. Be5 {[%emt 0:00:00]} Re7 {[%emt 0:00:00]} 46. Bd6 {[%emt 0:00:00]} Rd7 {[%emt 0:00:00]} 47. Rh1 {[%emt 0:00:00]} Nxf3 {[%emt 0:00:00]} 48. exf3 {[%emt 0:00:00]} Qf6 {[%emt 0:00:00]} 49. Re1 {[%emt 0:00:00]} Nf8 {[%emt 0:02:17]} 50. Raa1 {[%emt 0:00:00]} Ng6 {[%emt 0:00:35]} 51. f4 {[%emt 0:00:00]} Nh8 {[%emt 0:01:27]} 52. Be5 {[%emt 0:00:00]} Qg6 {[%emt 0:00:06]} 53. Bd4 {[%emt 0:00:00]} Nf7 {[%emt 0:00:06]} 54. Re3 {[%emt 0:00:00]} Nh6 {[%emt 0:00:51]} 55. Qe2 {[%emt 0:00:00]} Qf7 {[%emt 0:01:29]} 56. Re1 {[%emt 0:00:00]} Ng4 {[%emt 0:00:55]} 57. Re6 {[%emt 0:00:00]} Kf8 {[%emt 0:00:37]} 58. Rh1 {[%emt 0:00:00]} Kg8 {[%emt 0:00:28]} 59. f3 {[%emt 0:00:00]} Nf6 {[%emt 0:00:31]} 60. Qe5 {[%emt 0:10:59]} Re8 {[%emt 0:00:33]} 61. Re1 {[%emt 0:15:07]} Rxe6 {[%emt 0:08:31]} 62. Qxe6 {[%emt 0:00:00]} Qxe6 {[%emt 0:00:20]} 63. Rxe6 {[%emt 0:00:00]} Rc7 {[%emt 0:00:02]} 64. Re5 {[%emt 0:00:00]} Nh7 {[%emt 0:04:45]} 65. Rxf5 {[%emt 0:00:00]} Re7 {[%emt 0:00:03]} 66. Kf2 {[%emt 0:00:00]} g6 {[%emt 0:00:27]} 67. Re5 {[%emt 0:00:00]} Kf7 {[%emt 0:00:01]} 68. f5 {[%emt 0:00:00]} gxf5 {[%emt 0:02:21]} 69. Rxf5+ {[%emt 0:00:00]} Kg6 {[%emt 0:00:02]} 70. g4 {[%emt 0:00:00]} Re6 {[%emt 0:00:10]} 71. Rh5 {[%emt 0:00:00]} Re7 {[%emt 0:03:23]} 72. Be3 {[%emt 0:00:00]} Kg7 {[%emt 0:00:29]} 73. Rh1 {[%emt 0:00:05]} Rd7 {[%emt 0:00:42]} 74. Bd4+ {[%emt 0:02:03]} Kg6 {[%emt 0:00:36]} 75. Ra1 {[%emt 0:00:16]} Nf8 {[%emt 0:00:41]} 76. Ra6 {[%emt 0:00:08]} Rc7 {[%emt 0:00:07]} 77. Be5 {[%emt 0:00:06]} Rc8 {[%emt 0:00:13]} 78. Rxa7 {[%emt 0:00:21]} Ne6 {[%emt 0:00:04]} 79. f4 {[%emt 0:00:28]} 1-0

[Event "Italian Women Championship 2023"]
[Site "Brescia"]
[Date "2023.12.09"]
[Round "7.2"]
[White "Gueci, Tea"]
[Black "Brunello, Marina"]
[Result "1/2-1/2"]
[ECO "B90"]
[WhiteElo "2160"]
[BlackElo "2343"]
[Annotator "ChessBase"]
[PlyCount "72"]
[EventDate "2023.12.03"]
[EventType "tourn"]
[EventCountry "ITA"]
[SourceTitle "playchess.com"]
[Source "ChessBase"]
[SourceQuality "1"]
[TimeControl "40/6000+30:20/3000+30:900+30"]

1. e4 {[%emt 0:00:01]} c5 {[%emt 0:01:01]} 2. Nf3 {[%emt 0:00:04]} d6 {[%emt 0:00:04]} 3. d4 {[%emt 0:00:04]} cxd4 {[%emt 0:00:07]} 4. Nxd4 {[%emt 0:00:03]} Nf6 {[%emt 0:00:04]} 5. Nc3 {[%emt 0:00:03]} a6 {[%emt 0:00:02]} 6. Qd3 {[%emt 0:00:11]} Nbd7 {[%emt 0:10:14]} 7. Be2 {[%emt 0:00:06]} b5 {[%emt 0:02:53]} 8. Nd5 {[%emt 0:00:35]} Bb7 {[%emt 0:02:26]} 9. a4 {[%emt 0:00:23]} Nc5 {[%emt 0:12:52]} 10. Nxf6+ {[%emt 0:00:19]} gxf6 {[%emt 0:00:18]} 11. Qe3 {[%emt 0:00:52]} bxa4 {[%emt 0:05:58]} 12. f3 {[%emt 0:00:26]} h5 {[%emt 0:03:32]} 13. Qf2 {[%emt 0:03:00]} e6 {[%emt 0:05:11]} 14. O-O {[%emt 0:06:38]} d5 {[%emt 0:16:49]} 15. exd5 {[%emt 0:03:59]} Bxd5 {[%emt 0:00:08]} 16. Rd1 {[%emt 0:04:07]} Qc7 {[%emt 0:01:11]} 17. h3 {[%emt 0:16:52]} Rg8 {[%emt 0:04:32]} 18. b4 {[%emt 0:04:54]} axb3 {[%emt 0:03:59]} 19. cxb3 {[%emt 0:00:25]} Bd6 {[%emt 0:00:26]} 20. Be3 {[%emt 0:12:32]} Bg3 {[%emt 0:05:07]} 21. Qf1 {[%emt 0:00:13]} Qe5 {[%emt 0:01:18]} 22. Bf2 {[%emt 0:11:27]} Bxf2+ {[%emt 0:12:31]} 23. Qxf2 {[%emt 0:00:09]} a5 {[%emt 0:05:22]} 24. Bf1 {[%emt 0:25:58]} Kf8 {[%emt 0:04:32]} 25. Qc2 {[%emt 0:01:38]} Nxb3 {[%emt 0:01:43]} 26. Nxb3 {[%emt 0:02:07]} Qe3+ {[%emt 0:00:04]} 27. Kh1 {[%emt 0:00:19]} Bxb3 {[%emt 0:00:51]} 28. Qc6 {[%emt 0:00:53]} Bxd1 {[%emt 0:00:22]} 29. Qxa8+ {[%emt 0:00:39]} Kg7 {[%emt 0:00:09]} 30. Qxa5 {[%emt 0:00:15]} Qd4 {[%emt 0:02:04]} 31. Rc1 {[%emt 0:01:55]} Kh6 {[%emt 0:00:36]} 32. Qc7 {[%emt 0:04:27]} Rg7 {[%emt 0:02:41]} 33. Qb8 {[%emt 0:04:51]} Bxf3 {[%emt 0:06:00]} 34. Qh8+ {[%emt 0:01:04]} Rh7 {[%emt 0:00:02]} 35. Qf8+ {[%emt 0:00:07]} Rg7 {[%emt 0:00:04]} 36. Qh8+ {[%emt 0:00:13]} Rh7 {[%emt 0:00:03]} 1/2-1/2

[Event "Italian Women Championship 2023"]
[Site "Brescia"]
[Date "2023.12.09"]
[Round "7.3"]
[White "Martinelli, Valeria"]
[Black "Cassi, Elisa"]
[Result "0-1"]
[ECO "B13"]
[WhiteElo "1976"]
[BlackElo "1951"]
[Annotator "NA"]
[PlyCount "82"]
[EventDate "2023.12.03"]
[EventType "tourn"]
[EventCountry "ITA"]
[SourceTitle "playchess.com"]
[Source "ChessBase"]
[SourceQuality "1"]
[TimeControl "40/6000+30:20/3000+30:900+30"]

1. e4 {[%emt 0:00:03]} c6 {[%emt 0:00:04]} 2. d4 {[%emt 0:00:04]} d5 {[%emt 0:00:05]} 3. exd5 {[%emt 0:00:04]} cxd5 {[%emt 0:00:04]} 4. Bd3 {[%emt 0:00:06]} Nf6 {[%emt 0:00:06]} 5. c3 {[%emt 0:00:05]} Bg4 {[%emt 0:00:06]} 6. f3 {[%emt 0:06:43]} Bh5 {[%emt 0:00:15]} 7. Bf4 {[%emt 0:00:53]} Bg6 {[%emt 0:04:08]} 8. Bxg6 {[%emt 0:18:03]} hxg6 {[%emt 0:00:26]} 9. Qb3 {[%emt 0:06:04]} Qd7 {[%emt 0:02:56]} 10. Ne2 {[%emt 0:00:44]} e6 {[%emt 0:00:51]} 11. Nd2 {[%emt 0:07:57]} Nc6 {[%emt 0:08:45]} 12. O-O {[%emt 0:05:21]} Nh5 {[%emt 0:09:24]} 13. Bg3 {[%emt 0:17:11]} Nxg3 {[%emt 0:04:56]} 14. hxg3 {[%emt 0:00:09]} Bd6 {[%emt 0:00:39]} 15. Kf2 {[%emt 0:00:05]} Ne7 {[%emt 0:10:21]} 16. c4 {[%emt 0:05:13]} Nf5 {[%emt 0:10:02]} 17. c5 {[%emt 0:02:11]} Bc7 {[%emt 0:11:11]} 18. Qd3 {[%emt 0:06:36]} O-O-O {[%emt 0:05:59]} 19. b4 {[%emt 0:14:26]} Qe7 {[%emt 0:03:37]} 20. f4 {[%emt 0:02:03]} g5 {[%emt 0:03:23]} 21. Nf3 {[%emt 0:05:03]} gxf4 {[%emt 0:05:21]} 22. gxf4 {[%emt 0:00:04]} Nh4 {[%emt 0:00:07]} 23. Rh1 {[%emt 0:03:57]} Nxf3 {[%emt 0:02:30]} 24. Qxf3 {[%emt 0:00:04]} g5 {[%emt 0:01:26]} 25. g3 {[%emt 0:00:07]} gxf4 {[%emt 0:06:29]} 26. gxf4 {[%emt 0:00:04]} Rh4 {[%emt 0:00:08]} 27. Rxh4 {[%emt 0:01:15]} Qxh4+ {[%emt 0:00:04]} 28. Qg3 {[%emt 0:00:20]} Qh7 {[%emt 0:00:44]} 29. Rg1 {[%emt 0:02:35]} Qe4 {[%emt 0:04:58]} 30. Qe3 {[%emt 0:01:35]} Qc2 {[%emt 0:00:58]} 31. Rg7 {[%emt 0:00:17]} Rh8 {[%emt 0:01:08]} 32. Qg3 {[%emt 0:02:43]} Bd8 {[%emt 0:06:11]} 33. Rg8 {[%emt 0:00:13]} Rh5 {[%emt 0:01:20]} 34. Qg4 {[%emt 0:03:34]} Rh2+ {[%emt 0:01:41]} 35. Ke3 {[%emt 0:00:04]} Qe4+ {[%emt 0:00:37]} 36. Kd2 {[%emt 0:00:18]} Qxd4+ {[%emt 0:00:30]} 37. Kc2 {[%emt 0:01:37]} Qe4+ {[%emt 0:01:15]} 38. Kb3 {[%emt 0:00:55]} Rxe2 {[%emt 0:02:30]} 39. Rxd8+ {[%emt 0:00:08]} Kxd8 {[%emt 0:00:04]} 40. Qg8+ {[%emt 0:00:42]} Ke7 {[%emt 0:00:05]} 41. Qg5+ {[%emt 0:50:07]} Kd7 {[%emt 0:50:17]} 0-1

[Event "Italian Women Championship 2023"]
[Site "Brescia"]
[Date "2023.12.09"]
[Round "7.4"]
[White "Sala, Giulia"]
[Black "Rubinshtein, Kamilla"]
[Result "1/2-1/2"]
[ECO "C01"]
[WhiteElo "2045"]
[BlackElo "1921"]
[Annotator "NA RC"]
[PlyCount "55"]
[EventDate "2023.12.03"]
[EventType "tourn"]
[EventCountry "ITA"]
[SourceTitle "playchess.com"]
[Source "ChessBase"]
[SourceQuality "1"]
[TimeControl "40/6000+30:20/3000+30:900+30"]

1. e4 {[%emt 0:00:04]} e6 {[%emt 0:00:13]} 2. d4 {[%emt 0:00:10]} d5 {[%emt 0:00:12]} 3. Bd3 {[%emt 0:00:10]} dxe4 {[%emt 0:00:25]} 4. Bxe4 {[%emt 0:00:09]} Nf6 {[%emt 0:00:24]} 5. Bf3 {[%emt 0:00:10]} c5 {[%emt 0:00:30]} 6. Ne2 {[%emt 0:00:26]} Nc6 {[%emt 0:00:25]} 7. Be3 {[%emt 0:00:26]} cxd4 {[%emt 0:00:22]} 8. Nxd4 {[%emt 0:00:16]} Ne5 {[%emt 0:00:11]} 9. Nc3 {[%emt 0:00:14]} Be7 {[%emt 0:00:15]} 10. Qe2 {[%emt 0:00:30]} Nxf3+ {[%emt 0:00:52]} 11. Qxf3 {[%emt 0:00:16]} O-O {[%emt 0:00:21]} 12. O-O-O {[%emt 0:00:45]} Bd7 {[%emt 0:00:28]} 13. g4 {[%emt 0:00:14]} Qa5 {[%emt 0:00:19]} 14. g5 {[%emt 0:01:04]} Nd5 {[%emt 0:00:11]} 15. Nf5 {[%emt 0:00:50]} Nxc3 {[%emt 0:00:27]} 16. Nxe7+ {[%emt 0:00:09]} Kh8 {[%emt 0:00:08]} 17. Bd2 {[%emt 0:00:38]} Nxa2+ {[%emt 0:00:18]} 18. Kb1 {[%emt 0:00:09]} Qd8 {[%emt 0:00:18]} 19. Bf4 {[%emt 0:01:15]} Qxe7 {[%emt 0:00:52]} 20. Bd6 {[%emt 0:00:56]} Qe8 {[%emt 0:00:24]} 21. Rhe1 {[%emt 0:00:30]} Rg8 {[%emt 0:01:07]} 22. Rd4 {[%emt 0:00:40]} Qd8 {[%emt 0:00:42]} 23. Re5 {[%emt 0:00:17]} Qb6 {[%emt 0:00:19]} 24. Bc5 {[%emt 0:00:16]} Bc6 {[%emt 0:00:15]} 25. Qh3 {[%emt 0:00:16]} Bg2 {[%emt 0:00:16]} 26. Qxg2 {[%emt 0:00:39]} Nc3+ {[%emt 0:00:29]} 27. Kc1 {[%emt 0:00:16]} Na2+ {[%emt 0:00:26]} 28. Kb1 {[%emt 0:00:11]} 1/2-1/2